fUSD/lending_fUSD_20250106
["ID","MTS","AMOUNT","RATE_DAILY","PERIOD"]
[347829344,1736142638470,-500.0,9.999e-05,2]
[347829345,1736142638480,-1073.29,9.999e-05,2]
[347829346,1736142638489,-500.0,9.999e-05,2]
[347829347,1736142638499,-693.49,9.999e-05,2]
[347829348,1736142638508,-500.0,9.999e-05,2]
[347829349,1736142638518,-743.87,9.999e-05,2]
[347829350,1736142638527,-1000.0,0.0001,2]
[347829351,1736142638536,-161.41,0.0001,2]
[347829352,1736142638546,-261.57976904,0.0001,2]
[347829353,1736142638556,-1309.7585415,0.00010037,2]
[347829354,1736142638566,-520.84080957,0.00010037,2]
[347829355,1736142638575,-8646.57041668,0.00010037,2]
[347829356,1736142638584,-1977.84750397,0.00010037,2]
[347829357,1736142638593,-321.1582393,0.0001004,2]
[347829358,1736142638603,-182.88,0.000101,2]
[347829359,1736142638612,-500.0,0.00010134,2]
[347829360,1736142638622,-500.0,0.00010134,2]
[347829361,1736142638632,-500.0,0.00010134,2]
[347829362,1736142638641,-500.0,0.00010134,2]
[347829363,1736142638651,-500.0,0.00010134,2]
[347829364,1736142638661,-500.0,0.00010134,2]
[347829365,1736142638671,-500.0,0.00010134,2]
[347829366,1736142638680,-500.0,0.00010134,2]
[347829367,1736142638690,-500.0,0.00010134,2]
[347829368,1736142638699,-500.0,0.00010134,2]
[347829369,1736142638709,-500.0,0.00010134,2]
[347829370,1736142638719,-710.92,0.00010134,2]
[347829371,1736142638729,-500.0,0.00010134,2]
[347829373,1736142638738,-566.55,0.00010134,2]
[347829375,1736142638748,-500.0,0.00010134,2]
[347829377,1736142638758,-1319.9,0.00010134,2]
[347829379,1736142638767,-4715.74,0.00010134,2]
[347829381,1736142638776,-500.0,0.00010134,2]
[347829383,1736142638786,-500.0,0.00010134,2]
[347829384,1736142638795,-547.88,0.00010134,2]
[347829385,1736142638804,-500.0,0.00010134,2]
[347829386,1736142638814,-500.0,0.00010134,2]
[347829387,1736142638826,-500.0,0.00010134,2]
[347829388,1736142638836,-561.68,0.00010134,2]
[347829389,1736142638845,-500.0,0.00010134,2]
[347829390,1736142638854,-500.0,0.00010134,2]
[347829391,1736142638863,-500.0,0.00010134,2]
[347829392,1736142638872,-500.0,0.00010134,2]
[347829393,1736142638883,-812.84,0.00010134,2]
[347829394,1736142638892,-1441.51,0.00010134,2]
[347829395,1736142638901,-500.0,0.00010134,2]
[347829396,1736142638911,-500.0,0.00010134,2]
[347829397,1736142638920,-1827.6,0.00010134,2]
[347829398,1736142638929,-2671.02,0.00010134,2]
[347829399,1736142638939,-500.0,0.00010134,2]
[347829400,1736142638948,-2207.45,0.00010134,2]
[347829401,1736142638958,-716.35,0.00010134,2]
[347829402,1736142638971,-884.32,0.00010134,2]
[347829403,1736142638980,-783.58,0.00010134,2]
[347829404,1736142638990,-558.91,0.00010134,2]
[347829405,1736142639000,-500.0,0.00010134,2]
[347829406,1736142639011,-500.0,0.00010134,2]
[347829407,1736142639020,-500.0,0.00010134,2]
[347829408,1736142639030,-2479.41,0.00010134,2]
[347829409,1736142639039,-1170.35,0.00010134,2]
[347829410,1736142639050,-500.0,0.00010134,2]
[347829411,1736142639060,-733.46,0.00010134,2]
[347829412,1736142639070,-500.0,0.00010134,2]
[347829413,1736142639079,-1009.182706,0.00010134,2]
[347829414,1736142639090,-500.0,0.00010134,2]
[347829415,1736142639099,-500.0,0.00010134,2]
[347829416,1736142639109,-500.0,0.00010134,2]
[347829417,1736142639119,-1096.63,0.00010134,2]
[347829418,1736142639129,-1035.751289,0.00010134,2]
[347829419,1736142639138,-769.72,0.00010134,2]
[347829420,1736142639148,-500.0,0.00010134,2]
[347829421,1736142639157,-1003.8,0.00010134,2]
[347829422,1736142639167,-160.254242,0.00010134,2]
[347829423,1736142639176,-3164.88,0.00010134,2]
[347829424,1736142639185,-1735.52,0.00010134,2]
[347829425,1736142639195,-500.0,0.00010134,2]
[347829426,1736142639204,-500.0,0.00010134,2]
[347829427,1736142639213,-155.918964,0.00010134,2]
[347829428,1736142639223,-500.0,0.00010134,2]
[347829429,1736142639232,-500.0,0.00010134,2]
[347829430,1736142639242,-500.0,0.00010134,2]
[347829431,1736142639251,-500.0,0.00010134,2]
[347829432,1736142639260,-500.0,0.00010134,2]
[347829433,1736142639269,-52730.36243427,0.00010135,2]
[347829434,1736142639279,-500.0,0.00010135,2]
[347829435,1736142639290,-500.0,0.00010135,2]
[347829436,1736142639300,-500.0,0.00010135,2]
[347829437,1736142639309,-500.0,0.00010135,2]
[347829438,1736142639319,-500.0,0.00010135,2]
[347829439,1736142639328,-500.0,0.00010135,2]
[347829440,1736142639337,-500.0,0.00010135,2]
[347829441,1736142639347,-500.0,0.00010135,2]
[347829442,1736142639356,-500.0,0.00010135,2]
[347829443,1736142639365,-500.0,0.00010135,2]
[347829444,1736142639376,-500.0,0.00010135,2]
[347829445,1736142639385,-500.0,0.00010135,2]
[347829446,1736142639394,-500.0,0.00010135,2]
[347829448,1736142639605,-500.0,0.00010135,2]
[347829449,1736142639615,-508.33567904,0.00010135,2]
[347829450,1736142639624,-525.56,0.00010135,2]
[347829451,1736142639634,-500.0,0.00010135,2]
[347829453,1736142639643,-500.0,0.00010135,2]
[347829454,1736142639653,-500.0,0.00010135,2]
[347829456,1736142639662,-500.0,0.00010135,2]
[347829457,1736142639671,-500.0,0.00010135,2]
[347829458,1736142639682,-500.0,0.00010135,2]
[347829459,1736142639691,-500.0,0.00010135,2]
[347829460,1736142639701,-500.0,0.00010135,2]
[347829461,1736142639710,-500.0,0.00010135,2]
[347829462,1736142639719,-500.0,0.00010135,2]
[347829463,1736142639730,-500.0,0.00010135,2]
[347829464,1736142639739,-500.0,0.00010135,2]
[347829465,1736142639749,-500.0,0.00010135,2]
[347829466,1736142639758,-500.0,0.00010135,2]
[347829467,1736142639767,-500.0,0.00010135,2]
[347829468,1736142639776,-500.0,0.00010135,2]
[347829469,1736142639786,-500.0,0.00010135,2]
[347829470,1736142639795,-500.0,0.00010135,2]
[347829471,1736142639804,-500.0,0.00010135,2]
[347829472,1736142639814,-500.0,0.00010135,2]
[347829473,1736142639823,-500.0,0.00010135,2]
[347829474,1736142639833,-500.0,0.00010135,2]
[347829475,1736142639843,-500.0,0.00010135,2]
[347829476,1736142639852,-500.0,0.00010135,2]
[347829477,1736142639861,-500.0,0.00010135,2]
[347829478,1736142639871,-500.0,0.00010135,2]
[347829479,1736142639880,-500.0,0.00010135,2]
[347829480,1736142639890,-500.0,0.00010135,2]
[347829481,1736142639900,-500.0,0.00010135,2]
[347829482,1736142639909,-500.0,0.00010135,2]
[347829483,1736142639919,-500.0,0.00010135,2]
[347829484,1736142639928,-500.0,0.00010135,2]
[347829485,1736142639937,-500.0,0.00010135,2]
[347829486,1736142639946,-500.0,0.00010135,2]
[347829487,1736142639955,-500.0,0.00010135,2]
[347829488,1736142639968,-500.0,0.00010135,2]
[347829489,1736142639977,-500.0,0.00010135,2]
[347829490,1736142639987,-500.0,0.00010135,2]
[347829491,1736142639997,-576.36,0.00010135,2]
[347829492,1736142640007,-500.0,0.00010135,2]
[347829493,1736142640016,-500.0,0.00010135,2]
[347829494,1736142640025,-500.0,0.00010135,2]
[347829495,1736142640035,-500.0,0.00010135,2]
[347829496,1736142640048,-500.0,0.00010135,2]
[347829497,1736142640058,-500.0,0.00010135,2]
[347829498,1736142640068,-556.29,0.00010135,2]
[347829499,1736142640077,-500.0,0.00010135,2]
[347829500,1736142640087,-501.90851762,0.00010135,2]
[347829501,1736142640096,-500.0,0.00010135,2]
[347829502,1736142640106,-782.53,0.00010135,2]
[347829503,1736142640115,-500.0,0.00010135,2]
[347829504,1736142640124,-500.0,0.00010135,2]
[347829505,1736142640134,-2144.0,0.00010135,2]
[347829506,1736142640144,-730.96,0.00010135,2]
[347829507,1736142640154,-517.13,0.00010135,2]
[347829508,1736142640164,-500.0,0.00010135,2]
[347829509,1736142640173,-500.0,0.00010135,2]
[347829510,1736142640182,-500.0,0.00010135,2]
[347829511,1736142640192,-500.0,0.00010135,2]
[347829512,1736142640201,-3617.92,0.00010135,2]
[347829513,1736142640210,-500.0,0.00010135,2]
[347829514,1736142640219,-500.0,0.00010135,2]
[347829515,1736142640228,-500.0,0.00010135,2]
[347829516,1736142640238,-500.0,0.00010135,2]
[347829517,1736142640247,-3305.15,0.00010135,2]
[347829518,1736142640256,-500.0,0.00010135,2]
[347829519,1736142640265,-534.84,0.00010135,2]
[347829520,1736142640275,-1600.21,0.00010135,2]
[347829521,1736142640284,-500.0,0.00010135,2]
[347829522,1736142640293,-500.0,0.00010135,2]
[347829523,1736142640303,-500.0,0.00010135,2]
[347829524,1736142640312,-500.0,0.00010135,2]
[347829525,1736142640322,-624.97,0.00010135,2]
[347829526,1736142640331,-2952.21,0.00010135,2]
[347829527,1736142640340,-500.0,0.00010135,2]
[347829528,1736142640350,-500.0,0.00010135,2]
[347829529,1736142640359,-500.0,0.00010135,2]
[347829530,1736142640368,-500.0,0.00010135,2]
[347829531,1736142640377,-500.0,0.00010135,2]
[347829532,1736142640387,-500.0,0.00010135,2]
[347829533,1736142640397,-3425.79,0.00010135,2]
[347829534,1736142640406,-500.0,0.00010135,2]
[347829535,1736142640415,-562.89,0.00010135,2]
[347829536,1736142640424,-500.0,0.00010135,2]
[347829537,1736142640434,-500.0,0.00010135,2]
[347829538,1736142640443,-500.0,0.00010135,2]
[347829539,1736142640452,-500.0,0.00010135,2]
[347829540,1736142640461,-500.0,0.00010135,2]
[347829541,1736142640471,-500.0,0.00010135,2]
[347829542,1736142640480,-500.0,0.00010135,2]
[347829543,1736142640490,-1045.96,0.00010135,2]
[347829544,1736142640499,-500.0,0.00010135,2]
[347829545,1736142640508,-2832.63,0.00010135,2]
[347829546,1736142640518,-565.43,0.00010135,2]
[347829547,1736142640527,-776.58,0.00010135,2]
[347829548,1736142640537,-500.0,0.00010135,2]
[347829549,1736142640546,-1738.6,0.00010135,2]
[347829550,1736142640555,-906.44,0.00010135,2]
[347829551,1736142640564,-500.0,0.00010135,2]
[347829552,1736142640574,-500.0,0.00010135,2]
[347829553,1736142640584,-842.3,0.00010135,2]
[347829554,1736142640593,-482.45135484,0.00010135,2]
[347829555,1736142640603,-500.0,0.00010135,2]
[347829556,1736142640613,-500.0,0.00010135,2]
[347829557,1736142640623,-500.0,0.00010135,2]
[347829558,1736142640633,-500.0,0.00010135,2]
[347829559,1736142640642,-500.8855979,0.00010135,2]
[347829560,1736142640651,-500.0,0.00010135,2]
[347829561,1736142640661,-500.0,0.00010135,2]
[347829562,1736142640670,-500.0,0.00010135,2]
[347829563,1736142640679,-500.0,0.00010135,2]
[347829564,1736142640689,-501.35572332,0.00010135,2]
[347829565,1736142640698,-500.0,0.00010135,2]
[347829566,1736142640707,-500.0,0.00010135,2]
[347829567,1736142640717,-401.70184284,0.00010135,2]
[347829568,1736142640726,-500.0,0.00010135,2]
[347829569,1736142640735,-500.0,0.00010135,2]
[347829570,1736142640744,-500.0,0.00010135,2]
[347829571,1736142640753,-500.0,0.00010135,2]
[347829572,1736142640763,-500.0,0.00010135,2]
[347829573,1736142640772,-500.0,0.00010135,2]
[347829574,1736142640780,-636.51852344,0.00010135,2]
[347829575,1736142640789,-500.0,0.00010135,2]
[347829576,1736142640799,-500.0,0.00010135,2]
[347829577,1736142640808,-343.31956222,0.00010135,2]
[347829578,1736142640817,-48131.77615642,0.00010135,2]
[347829579,1736142641153,-134898.41805836,0.00010135,2]
[347829580,1736142641162,-1000.0,0.00010136,2]
[347829581,1736142641172,-1038.10045899,0.00010136,3]
[347829582,1736142641181,-1038.10045899,0.00010136,3]
[347829583,1736142641191,-1038.10045899,0.00010136,3]
[347829584,1736142641200,-1038.10045899,0.00010136,3]
[347829585,1736142641209,-1038.10045899,0.00010136,3]
[347829586,1736142641218,-1038.10045899,0.00010136,3]
[347829587,1736142641227,-1038.10045899,0.00010136,3]
[347829588,1736142641237,-1038.10045899,0.00010136,3]
[347829589,1736142641246,-1038.10045897,0.00010136,3]
[347829590,1736142641255,-1038.10045899,0.00010136,3]
[347829591,1736142641264,-1038.10045899,0.00010136,3]
[347829592,1736142641273,-1382.58,0.00010136,2]
[347829593,1736142641282,-1320.79,0.00010136,2]
[347829594,1736142641291,-2675.57,0.00010136,2]
[347829595,1736142641300,-1557.73,0.00010136,2]
[347829596,1736142641309,-4694.35,0.00010136,2]
[347829597,1736142641318,-1816.3,0.00010136,2]
[347829598,1736142641327,-500.0,0.00010136,2]
[347829599,1736142641336,-2703.84,0.00010136,2]
[347829600,1736142641346,-1585.28,0.00010136,2]
[347829601,1736142641355,-1059.74,0.00010136,2]
[347829602,1736142641365,-500.0,0.00010136,2]
[347829603,1736142641374,-1782.69,0.00010136,2]
[347829604,1736142641384,-500.0,0.00010136,2]
[347829605,1736142641393,-207.08,0.00010136,2]
[347829606,1736142641403,-3019.48,0.00010136,2]
[347829607,1736142641412,-1642.8,0.00010136,2]
[347829608,1736142641421,-500.0,0.00010136,2]
[347829609,1736142641431,-471.34,0.00010136,2]
[347829610,1736142641440,-553.0,0.00010136,2]
[347829611,1736142641449,-590.23,0.00010136,2]
[347829612,1736142641458,-1768.45,0.00010136,2]
[347829613,1736142641467,-916.04,0.00010136,2]
[347829614,1736142641476,-1247.65,0.00010136,2]
[347829615,1736142641485,-3000.0,0.00010136,2]
[347829616,1736142641495,-1759.17,0.00010136,2]
[347829617,1736142641503,-905.03,0.00010136,2]
[347829618,1736142641513,-807.71,0.00010136,2]
[347829619,1736142641522,-3263.47,0.00010136,2]
[347829620,1736142641531,-7831.99,0.00010136,2]
[347829621,1736142641540,-524.73,0.00010136,2]
[347829622,1736142641549,-3001.74,0.00010136,2]
[347829623,1736142641559,-1719.12,0.00010136,2]
[347829624,1736142641568,-558.96,0.00010136,2]
[347829625,1736142641578,-1112.13,0.00010136,2]
[347829626,1736142641587,-6223.58,0.00010136,2]
[347829627,1736142641597,-529.93,0.00010136,2]
[347829628,1736142641606,-704.99,0.00010136,2]
[347829629,1736142641616,-5790.61,0.00010136,2]
[347829630,1736142641625,-717.26,0.00010136,2]
[347829631,1736142641634,-568.18,0.00010136,2]
[347829632,1736142641644,-4062.67,0.00010136,2]
[347829633,1736142641653,-94448.62721172,0.00010137,2]
[347829634,1736142641665,-19916.9,0.00010137,2]
[347829635,1736142641799,-500.0,0.00010135,2]
[347829636,1736142641808,-414.94104856,0.00010137,2]
[347829637,1736142641993,-535.53,0.00010134,2]
[347829638,1736142642000,-4556.29413923,0.00010137,2]
[347829639,1736142642038,-2610.97439795,0.00010137,2]
[347829640,1736142642048,-466.5999998,0.00010137,2]
[347829641,1736142642058,-569.83961112,0.00010137,2]
[347829642,1736142642112,-4475.05899801,0.00010137,2]
[347829643,1736142642120,-4284.08219739,0.00010137,2]
[347829644,1736142642165,-1496.72232947,0.00010137,2]
[347829645,1736142642183,-813.49447709,0.00010137,2]
[347829662,1736142642697,-939.00831506,0.00010137,2]
[347829668,1736142642812,-978.79830355,0.00010137,2]
[347829669,1736142642823,-6806.8384954,0.00010137,2]
[347829670,1736142642836,-7921.44432582,0.00010137,2]
[347829671,1736142642875,-9849.16828037,0.00010137,2]
[347829672,1736142642887,-8637.69830475,0.00010137,2]
[347829673,1736142642939,-883.5024607,0.00010137,2]
[347829674,1736142642951,-435.64141315,0.00010137,2]
[347829675,1736142643051,-8847.32969744,0.00010137,2]
[347829676,1736142643062,-5363.82640682,0.00010137,2]
[347829683,1736142645635,-750.93,0.00010134,2]
[347829684,1736142645646,-542.94,0.00010134,2]
[347829685,1736142645656,-500.0,0.00010135,2]
[347829686,1736142645666,-52.83,0.00010137,2]
[347829687,1736142645739,-24797.31263717,0.00010137,2]
[347829688,1736142645751,-9985.0,0.00010137,2]
[347829689,1736142645783,-39487.17226742,0.00010137,2]
[347829690,1736142645820,-460.78885169,0.00010137,2]
[347829691,1736142645855,-626.8265502,0.00010137,2]
[347829692,1736142645874,-10161.9441476,0.00010137,2]
[347829693,1736142645886,-10001.69355413,0.00010137,2]
[347829694,1736142645898,-3486.25978421,0.00010137,2]
[347829695,1736142645929,-500.0,0.00010134,2]
[347829696,1736142645939,-200877.15030259,0.00010137,2]
[347829697,1736142645950,-1333.31879982,0.00010137,2]
[347829698,1736142645987,-43407.35718643,0.00010137,2]
[347829699,1736142645999,-704.9042855,0.00010137,2]
[347829700,1736142646011,-738.9687237,0.00010137,2]
[347829701,1736142646024,-332.6633852,0.00010137,2]
[347829702,1736142646043,-383.5086327,0.00010137,2]
[347829959,1736143832131,-459.37,8.219e-05,2]
[347829960,1736143832142,-285.32,9.18e-05,2]
[347829961,1736143832154,-250.0,9.201e-05,2]
[347829962,1736143832165,-250.0,9.298e-05,2]
[347829963,1736143832177,-320.82600315,9.309e-05,2]
[347829964,1736143832199,-679.17399685,9.309e-05,2]
[347829965,1736143832211,-534.37,9.329e-05,2]
[347829966,1736143832223,-6595.0,9.606e-05,2]
[347829967,1736143832234,-376.965,9.63e-05,2]
[347829968,1736143832246,-1777.69100315,9.917e-05,4]
[347829969,1736143832303,-4428.07970061,9.917e-05,4]
[347829970,1736143832317,-1995.8795725,9.917e-05,4]
[347829971,1736143832340,-8517.61148304,9.917e-05,4]
[347829972,1736143832353,-20527.58170936,9.937e-05,2]
[347829973,1736143832365,-179.21904776,9.969e-05,2]
[347829974,1736143832377,-160.5826734,9.969e-05,2]
[347829975,1736143832389,-150.0,9.972e-05,2]
[347829976,1736143832400,-151.77452967,9.973e-05,2]
[347829977,1736143832413,-159.91306763,9.973e-05,2]
[347829978,1736143832426,-500.0,9.973e-05,2]
[347829979,1736143832437,-159.98678262,9.973e-05,2]
[347829980,1736143832448,-500.0,9.999e-05,2]
[347829981,1736143832458,-1772.64,9.999e-05,2]
[347829982,1736143832467,-2137.87,9.999e-05,2]
[347829984,1736143832477,-868.31,9.999e-05,2]
[347829986,1736143832487,-535.62,9.999e-05,2]
[347829988,1736143832497,-2401.72,9.999e-05,2]
[347829989,1736143832843,-500.0,9.999e-05,2]
[347829990,1736143832864,-500.0,9.999e-05,2]
[347829991,1736143832875,-500.0,9.999e-05,2]
[347829992,1736143832885,-961.97,9.999e-05,2]
[347829993,1736143832895,-500.0,9.999e-05,2]
[347829994,1736143832904,-260.36884025,9.999e-05,2]
[347829995,1736143832914,-500.0,9.999e-05,2]
[347829996,1736143832924,-500.0,9.999e-05,2]
[347829997,1736143832934,-500.0,9.999e-05,2]
[347829998,1736143832944,-359.94719442,9.999e-05,2]
[347829999,1736143832953,-500.0,9.999e-05,2]
[347830000,1736143832963,-161.41,0.0001,2]
[347830001,1736143832972,-38979.81747589,0.0001,2]
[347830002,1736143837817,-500.0,9.999e-05,2]
[347830003,1736143837826,-500.0,9.999e-05,2]
[347830004,1736143837836,-5352143.44192868,0.0001,2]
[347830005,1736143837845,-173.61360319,0.0001,2]
[347830006,1736143837854,-179.21904776,0.0001,2]
[347830007,1736143837863,-160.58267342,0.0001,2]
[347830008,1736143837873,-152.26286326,0.0001,2]
[347830009,1736143837883,-6210.981,0.00010036,2]
[347830010,1736143837892,-356.795,0.00010036,2]
[347830011,1736143837901,-173.61360319,0.00010037,2]
[347830012,1736143837911,-179.21904776,0.00010037,2]
[347830013,1736143837920,-160.5826734,0.00010037,2]
[347830014,1736143837929,-8404.8146314,0.0001004,2]
[347830015,1736143837939,-500.0,0.00010134,2]
[347830016,1736143837948,-500.0,0.00010134,2]
[347830017,1736143837957,-500.0,0.00010134,2]
[347830018,1736143837967,-500.0,0.00010134,2]
[347830019,1736143837976,-500.0,0.00010134,2]
[347830020,1736143837985,-500.0,0.00010134,2]
[347830021,1736143837994,-500.0,0.00010134,2]
[347830022,1736143838003,-500.0,0.00010134,2]
[347830023,1736143838013,-500.0,0.00010134,2]
[347830024,1736143838022,-500.0,0.00010134,2]
[347830025,1736143838031,-500.0,0.00010134,2]
[347830026,1736143838040,-498.79468221,0.00010134,2]
[347830027,1736143838050,-500.0,0.00010134,2]
[347830028,1736143838060,-500.0,0.00010134,2]
[347830029,1736143838069,-500.0,0.00010134,2]
[347830030,1736143838079,-608.51248184,0.00010134,2]
[347830031,1736143838088,-500.0,0.00010134,2]
[347830032,1736143838097,-212.94143247,0.00010134,2]
[347830033,1736143838106,-500.0,0.00010134,2]
[347830034,1736143838115,-500.0,0.00010134,2]
[347830035,1736143838127,-500.0,0.00010134,2]
[347830036,1736143838136,-500.0,0.00010134,2]
[347830037,1736143838145,-1023.21,0.00010134,2]
[347830038,1736143838154,-1293.59,0.00010134,2]
[347830039,1736143838163,-500.0,0.00010134,2]
[347830040,1736143838173,-500.0,0.00010134,2]
[347830041,1736143838182,-1691.08,0.00010134,2]
[347830042,1736143838192,-500.0,0.00010134,2]
[347830043,1736143838201,-500.0,0.00010134,2]
[347830044,1736143838210,-1232.21,0.00010134,2]
[347830045,1736143838219,-500.0,0.00010134,2]
[347830046,1736143838229,-518.16,0.00010134,2]
[347830047,1736143838238,-500.0,0.00010134,2]
[347830048,1736143838247,-500.0,0.00010134,2]
[347830049,1736143838256,-891.83,0.00010134,2]
[347830050,1736143838266,-500.0,0.00010134,2]
[347830051,1736143838275,-804.16,0.00010134,2]
[347830052,1736143838284,-500.0,0.00010134,2]
[347830053,1736143838294,-500.0,0.00010134,2]
[347830055,1736143838303,-500.0,0.00010134,2]
[347830057,1736143838312,-500.0,0.00010134,2]
[347830059,1736143838322,-500.0,0.00010134,2]
[347830061,1736143838331,-500.0,0.00010134,2]
[347830063,1736143838340,-500.0,0.00010134,2]
[347830064,1736143838350,-500.0,0.00010134,2]
[347830065,1736143838359,-500.0,0.00010134,2]
[347830066,1736143838371,-354.77274699,0.00010134,2]
[347830067,1736143838381,-500.0,0.00010134,2]
[347830068,1736143838391,-500.0,0.00010134,2]
[347830069,1736143838401,-500.0,0.00010134,2]
[347830070,1736143838411,-500.0,0.00010134,2]
[347830071,1736143838421,-500.0,0.00010134,2]
[347830072,1736143838431,-500.0,0.00010134,2]
[347830073,1736143838441,-500.0,0.00010134,2]
[347830074,1736143838451,-500.0,0.00010134,2]
[347830075,1736143838461,-2956.2,0.00010134,2]
[347830076,1736143838471,-500.0,0.00010134,2]
[347830077,1736143838480,-500.0,0.00010134,2]
[347830078,1736143838490,-500.0,0.00010134,2]
[347830079,1736143838499,-500.0,0.00010134,2]
[347830080,1736143838509,-500.0,0.00010134,2]
[347830081,1736143838518,-500.0,0.00010134,2]
[347830082,1736143838527,-500.0,0.00010134,2]
[347830083,1736143838536,-1691.01,0.00010134,2]
[347830084,1736143838546,-500.0,0.00010134,2]
[347830085,1736143838555,-516.21,0.00010134,2]
[347830086,1736143838564,-500.0,0.00010134,2]
[347830087,1736143838573,-6179.05,0.00010134,2]
[347830088,1736143838583,-500.0,0.00010134,2]
[347830089,1736143838594,-655.69,0.00010134,2]
[347830090,1736143838605,-500.0,0.00010134,2]
[347830091,1736143838615,-500.0,0.00010134,2]
[347830092,1736143838628,-721.58,0.00010134,2]
[347830093,1736143838639,-5668.08,0.00010134,2]
[347830094,1736143838648,-500.0,0.00010134,2]
[347830095,1736143838658,-500.0,0.00010134,2]
[347830096,1736143838668,-500.0,0.00010134,2]
[347830097,1736143838680,-500.0,0.00010134,2]
[347830098,1736143838689,-500.0,0.00010134,2]
[347830099,1736143838699,-500.0,0.00010134,2]
[347830100,1736143838708,-500.0,0.00010134,2]
[347830101,1736143838718,-500.0,0.00010134,2]
[347830102,1736143838729,-500.0,0.00010134,2]
[347830103,1736143838738,-1106.78,0.00010134,2]
[347830104,1736143838748,-500.0,0.00010134,2]
[347830105,1736143838757,-833.26,0.00010134,2]
[347830106,1736143838767,-1029.33,0.00010134,2]
[347830107,1736143838776,-2110.93,0.00010134,2]
[347830108,1736143838786,-1112.66,0.00010134,2]
[347830109,1736143838795,-500.0,0.00010134,2]
[347830110,1736143838804,-500.0,0.00010134,2]
[347830111,1736143838813,-500.0,0.00010134,2]
[347830112,1736143838823,-500.0,0.00010134,2]
[347830113,1736143838832,-500.0,0.00010134,2]
[347830114,1736143838842,-500.0,0.00010134,2]
[347830115,1736143838851,-3608.63,0.00010134,2]
[347830116,1736143838861,-500.0,0.00010134,2]
[347830117,1736143838873,-500.0,0.00010134,2]
[347830118,1736143838883,-525.05,0.00010134,2]
[347830119,1736143838893,-500.0,0.00010134,2]
[347830120,1736143838902,-500.0,0.00010134,2]
[347830121,1736143838912,-500.0,0.00010134,2]
[347830122,1736143838921,-500.0,0.00010134,2]
[347830123,1736143838931,-681.3,0.00010134,2]
[347830124,1736143838940,-699.19,0.00010134,2]
[347830125,1736143838950,-520.32,0.00010134,2]
[347830126,1736143838959,-500.0,0.00010134,2]
[347830127,1736143838968,-799.8,0.00010134,2]
[347830128,1736143838977,-1321.82,0.00010134,2]
[347830129,1736143838987,-500.0,0.00010134,2]
[347830130,1736143838996,-4519.25,0.00010134,2]
[347830131,1736143839005,-500.0,0.00010134,2]
[347830132,1736143839015,-500.0,0.00010134,2]
[347830133,1736143839024,-500.0,0.00010134,2]
[347830134,1736143839033,-544.43,0.00010134,2]
[347830135,1736143839043,-500.0,0.00010134,2]
[347830136,1736143839052,-559.11,0.00010134,2]
[347830137,1736143839061,-500.0,0.00010134,2]
[347830138,1736143839071,-500.0,0.00010134,2]
[347830139,1736143839080,-1412.41,0.00010134,2]
[347830140,1736143839089,-500.0,0.00010134,2]
[347830141,1736143839098,-500.0,0.00010134,2]
[347830142,1736143839107,-672.17,0.00010134,2]
[347830143,1736143839116,-2602.84,0.00010134,2]